bitfinex/quotes_ETHUSD_20240601
["timestamp","ask_amount","ask_price","bid_price","bid_amount"]
[1717218428166,2.64432,3781.7,3781.1,2.2765]
[1717218428367,2.3572,3782.1,3780.4,2.4284]
[1717218428710,2.64411,3782.0,3781.7,0.638]
[1717218428910,2.64462,3781.3,3780.4,2.4284]
[1717218429082,2.64462,3781.3,3781.2,0.638]
[1717218433556,2.64462,3781.3,3780.5,2.4284]
[1717218433692,2.64462,3781.3,3781.2,0.638]
[1717218442465,3.144802,3781.3,3780.0,0.01761364]
[1717218442663,3.55,3781.2,3780.0,0.01761364]
[1717218442971,2.64543,3780.1,3780.0,0.01761364]
[1717218443265,5.64543,3780.1,3780.0,0.01761364]
[1717218443642,5.64543,3780.1,3780.0,0.65561364]
[1717218448095,5.6451,3780.6,3780.0,3.07061364]
[1717218448246,5.6451,3780.6,3780.5,0.638]
[1717218449659,2.6451,3780.6,3780.5,0.638]
[1717218449859,2.64475,3781.1,3780.5,0.638]
[1717218450079,2.64475,3781.1,3781.0,0.638]
[1717218450482,7.43,3782.1,3781.0,0.638]
[1717218450483,2.64437,3781.7,3781.0,0.638]
[1717218450698,2.64437,3781.7,3781.6,0.638]
[1717218451713,5.64437,3781.7,3781.4,1.532]
[1717218451921,2.64445,3781.5,3781.4,1.532]
[1717218452213,5.64445,3781.5,3781.4,1.532]
[1717218461289,6.208895,3781.5,3781.4,1.532]
[1717218462889,2.6448,3781.1,3781.0,1.532]
[1717218463084,5.6448,3781.1,3781.0,1.532]
[1717218469242,2.64507,3780.7,3780.2,2.2897]
[1717218469406,2.64507,3780.7,3780.6,1.532]
[1717218473493,2.64507,3780.7,3780.2,2.2897]
[1717218473824,2.64507,3780.7,3780.6,0.639]
[1717218477542,2.64507,3780.7,3780.2,2.2897]
[1717218477847,2.64507,3780.7,3780.6,0.639]
[1717218479489,2.53270242,3782.9,3780.7,2.4202]
[1717218479629,1.56802691,3782.8,3780.8,0.30592]
[1717218479966,2.64354,3782.8,3782.7,0.639]
[1717218481542,0.26506725,3783.1,3782.8,2.4202]
[1717218481846,2.64275,3784.0,3782.9,0.39502]
[1717218482059,2.64275,3784.0,3782.8,2.4202]
[1717218482060,2.64275,3784.0,3783.8,1.53]
[1717218483383,3.0,3783.9,3783.8,1.53]
[1717218484664,3.0,3783.9,3781.9,0.55095052]
[1717218484665,2.64335,3783.1,3781.6,2.64432]
[1717218484866,2.64335,3783.1,3782.7,1.53]
[1717218485050,3.0,3783.0,3782.7,1.53]
[1717218485216,2.64347,3782.9,3782.7,1.53]
[1717218485417,3.564347,3782.8,3782.7,1.53]
[1717218488482,3.0,3782.8,3782.7,1.53]
[1717218503806,3.0,3782.8,3782.7,1.52688332]
[1717218507594,3.0,3782.8,3782.7,0.638]
[1717218509369,3.0,3782.8,3781.6,2.93010935]
[1717218509677,3.0,3782.8,3782.7,0.638]
[1717218522638,2.64367,3782.7,3781.6,7.71579117]
[1717218522873,2.64377,3782.5,3781.5,2.4703]
[1717218522986,2.64377,3782.5,3782.4,0.638]
[1717218523190,5.64377,3782.5,3782.4,0.638]
[1717218524914,6.4950017,3782.5,3782.4,0.638]
[1717218533867,6.4950017,3782.5,3781.5,2.4703]
[1717218534068,5.64377,3782.5,3782.4,0.638]
[1717218547457,2.64431,3781.7,3781.2,1.37863548]
[1717218547661,2.64431,3781.7,3781.6,0.638]
[1717218556130,5.64431,3781.7,3781.6,0.638]
[1717218556330,5.908741,3781.7,3781.6,0.638]
[1717218556987,8.308141,3781.7,3781.6,0.638]
[1717218559358,5.908741,3781.7,3781.6,0.638]
[1717218562385,5.64431,3781.7,3781.6,0.638]
[1717218566809,2.64402,3782.2,3781.6,0.638]
[1717218567008,2.64402,3782.2,3782.1,0.638]
[1717218567382,5.64402,3782.2,3782.1,0.638]
[1717218569459,5.64402,3782.2,3781.3,2.4374]
[1717218569679,3.0,3782.1,3781.4,0.24374]
[1717218569916,3.0,3782.1,3782.0,0.638]
[1717218571535,3.0,3782.1,3782.0,2.8949]
[1717218574108,3.0,3782.1,3782.0,0.638]
[1717218599673,2.64422,3781.9,3781.2,2.4347]
[1717218599876,2.64422,3781.9,3781.8,0.638]
[1717218600177,5.64422,3781.9,3781.8,0.638]
[1717218602821,5.64422,3781.9,3781.8,3.0727]
[1717218604287,5.64422,3781.9,3781.3,0.43644079]
[1717218604490,5.64422,3781.9,3781.8,0.638]
[1717218611328,2.64388,3782.4,3781.8,0.638]
[1717218611512,3.0,3782.3,3781.7,2.364]
[1717218611713,3.0,3782.3,3782.2,0.638]
[1717218632741,2.64352,3782.9,3782.2,0.638]
[1717218632955,2.64352,3782.9,3782.8,0.638]
[1717218633167,5.92366219,3782.9,3782.8,0.638]
[1717218636275,5.64352,3782.9,3782.8,0.638]
[1717218646684,2.64317,3783.4,3782.8,0.638]
[1717218646887,3.0,3783.3,3782.8,2.4298]
[1717218647052,3.0,3783.3,3783.2,0.638]
[1717218659206,2.64329,3783.2,3782.3,2.2792]
[1717218659416,2.64329,3783.2,3783.1,0.638]
[1717218661660,5.64329,3783.2,3783.1,0.638]
[1717218668568,0.14485915,3783.6,3783.1,0.638]
[1717218668814,0.14485915,3783.6,3783.5,0.638]
[1717218668970,3.14485915,3783.6,3783.5,0.638]
[1717218672192,0.14485915,3783.6,3783.5,0.638]
[1717218672522,0.14485915,3783.6,3783.5,2.8959]
[1717218672694,0.14485915,3783.6,3783.5,3.18549]
[1717218691234,2.3528,3782.6,3781.8,0.82642579]
[1717218691552,2.3528,3782.6,3781.6,0.82642579]
[1717218691553,2.64397,3782.2,3781.6,0.82642579]
[1717218691730,2.64358,3782.8,3781.7,0.24803045]
[1717218692024,2.64358,3782.8,3781.3,0.82642579]
[1717218692025,2.64358,3782.8,3781.4,0.82642579]
[1717218692337,2.64358,3782.8,3782.7,0.638]
[1717218700611,2.6432,3783.3,3782.7,0.638]
[1717218700806,2.6432,3783.3,3783.1,0.638]
[1717218740609,2.6429,3783.8,3783.1,0.638]
[1717218740908,2.6429,3783.8,3783.6,0.638]
[1717218743076,2.4812,3784.1,3783.6,0.638]
[1717218743265,2.4812,3784.1,3784.0,0.638]
[1717218760654,2.64284,3783.8,3783.1,7.43]
[1717218760977,2.64284,3783.8,3783.7,0.638]
[1717218762360,2.64321,3783.3,3782.6,0.55177007]
[1717218762563,2.64321,3783.3,3783.2,0.638]
[1717218775284,2.64288,3783.8,3783.2,0.638]
[1717218775490,3.0,3783.7,3783.0,2.2614]
[1717218775796,3.0,3783.7,3783.6,0.638]
[1717218776368,2.64288,3783.8,3783.6,0.638]
[1717218776623,2.64288,3783.8,3783.6,2.8994]
[1717218779598,2.64150952,3783.8,3783.2,2.4452]
[1717218779927,2.64150952,3783.8,3783.7,0.638]
[1717218791747,2.64150952,3783.8,3783.1,0.22614]
[1717218792108,2.64150952,3783.8,3783.7,0.638]
[1717218802060,2.64255,3784.3,3783.7,0.638]
[1717218802212,3.0,3784.2,3783.8,0.3063]
[1717218802560,3.0,3784.2,3784.1,0.638]
[1717218803406,2.64255,3784.3,3784.1,0.638]
[1717218805454,2.64255,3784.3,3783.5,2.425]
[1717218805663,2.64255,3784.3,3784.2,0.638]
[1717218807162,2.6422,3784.8,3784.2,0.638]
[1717218807346,2.6422,3784.8,3784.7,0.638]
[1717218807550,5.6422,3784.8,3784.7,0.638]
[1717218807937,8.94164369,3784.8,3783.6,3.45029717]
[1717218808117,2.64236,3784.5,3783.6,3.45029717]
[1717218808313,2.64236,3784.5,3784.4,0.638]
[1717218811242,5.11546,3784.5,3784.4,0.638]
[1717218815562,5.11546,3784.5,3783.6,9.757]
[1717218815748,5.11546,3784.5,3784.4,0.638]
[1717218825190,5.11546,3784.5,3783.6,9.757]
[1717218825368,5.11546,3784.5,3784.4,0.638]
[1717218826613,2.64236,3784.5,3784.4,0.638]
[1717218828416,2.64236,3784.5,3783.6,9.757]
[1717218828585,2.64236,3784.5,3784.4,0.638]
[1717218836920,2.7901969,3785.0,3784.4,0.638]
[1717218837122,3.0,3784.9,3784.5,0.29777]
[1717218837321,3.0,3784.9,3784.8,0.638]
[1717218842556,2.7901969,3785.0,3784.8,0.638]
[1717218848879,2.64171,3785.5,3784.9,2.483]
[1717218849084,2.64171,3785.5,3785.3,0.638]
[1717218852690,2.64171,3785.5,3785.0,0.3121]
[1717218852839,2.64171,3785.5,3785.4,0.638]
[1717218853041,5.64171,3785.5,3785.4,0.638]
[1717218858392,5.64171,3785.5,3784.9,2.483]
[1717218858545,5.64171,3785.5,3785.4,0.638]
[1717218878705,2.64171,3785.5,3785.4,0.638]
[1717218885814,2.64135,3786.0,3785.4,0.638]
[1717218886047,2.64135,3786.0,3785.3,2.4123]
[1717218886048,2.64135,3786.0,3785.8,0.638]
[1717218887964,2.64135,3786.0,3785.8,3.0503]
[1717218888271,2.64135,3786.0,3785.9,0.30503]
[1717218894426,0.005,3786.4,3786.0,2.4123]
[1717218894623,0.005,3786.4,3786.3,0.638]
[1717218897446,0.005,3786.4,3786.0,2.4123]
[1717218897641,0.005,3786.4,3786.3,0.638]
[1717218899998,2.64066,3787.0,3786.4,2.3245]
[1717218900145,2.64066,3787.0,3786.8,0.638]
[1717218902299,2.64066,3787.0,3786.4,2.3245]
[1717218902516,2.64066,3787.0,3786.9,0.638]
[1717218903008,5.3776,3787.4,3786.9,0.638]
[1717218903293,3.0,3787.4,3786.9,0.638]
[1717218906596,2.6403,3787.5,3786.9,3.0051]
[1717218906800,2.6403,3787.5,3787.0,0.30051]
[1717218909500,3.0,3787.9,3787.0,0.30051]
[1717218909908,3.0,3787.9,3787.8,0.638]
[1717218910206,2.63995,3788.0,3787.8,0.638]
[1717218910440,2.63957,3788.5,3787.9,2.3671]
[1717218910589,2.63957,3788.5,3788.2,0.638]
[1717218910942,7.43,3790.1,3788.2,3.0051]
[1717218910943,2.63922,3789.0,3788.2,3.0051]
[1717218911106,2.63922,3789.0,3788.9,0.638]
[1717218911107,5.13832,3789.0,3788.9,0.638]
[1717218911493,5.13832,3789.0,3787.7,2.3671]
[1717218911695,5.13832,3789.0,3788.9,0.638]
[1717218911943,5.13832,3789.0,3787.7,2.3671]
[1717218912101,2.63955,3788.6,3787.5,7.43]
[1717218912297,2.63985,3788.1,3786.9,9.7971]
[1717218912506,2.63985,3788.1,3787.1,1.009761]
[1717218912800,2.64018,3787.7,3786.9,2.3671]
[1717218913030,2.64018,3787.7,3786.5,2.3671]
[1717218913211,2.64018,3787.7,3787.6,0.638]
[1717218913595,2.64018,3787.7,3786.5,2.3671]
[1717218913833,2.64018,3787.7,3787.6,0.638]
[1717218914816,2.64048,3787.2,3786.5,2.3671]
[1717218915148,2.64048,3787.2,3786.6,0.97971]
[1717218915396,2.64048,3787.2,3787.1,0.638]
[1717218930967,2.64079,3786.8,3786.4,7.43]
[1717218931291,2.64079,3786.8,3786.7,0.638]
[1717218931459,2.64079,3786.8,3786.7,1.4448]
[1717218931788,2.64079,3786.8,3786.7,0.638]
[1717218932902,2.64079,3786.8,3786.1,2.638833]
[1717218933054,2.64079,3786.8,3786.7,0.638]
[1717218936647,2.64043,3787.3,3786.7,2.9689]
[1717218936851,2.64043,3787.3,3787.2,0.638]
[1717218937056,2.63998,3787.9,3787.3,2.3309]
[1717218937313,2.63998,3787.9,3787.8,0.638]
[1717218938356,2.63998,3787.9,3787.0,2.2895]
[1717218938584,2.63998,3787.9,3787.8,0.638]
[1717218941274,2.64069,3786.9,3786.1,0.82350307]
[1717218941475,2.64069,3786.9,3786.1,0.271733]
[1717218941703,2.64069,3786.9,3786.8,0.638]
[1717218952050,2.64035,3787.4,3786.8,0.638]
[1717218952257,2.64035,3787.4,3787.3,0.638]
[1717218953912,2.64035,3787.4,3786.6,9.8718]
[1717218954110,2.64035,3787.4,3787.3,0.638]
[1717218955311,3.0,3787.8,3787.3,0.638]
[1717218955512,2.64008,3787.8,3787.7,0.638]
[1717218955740,5.64008,3787.8,3787.7,0.638]
[1717218956959,5.64008,3787.8,3786.4,2.4418]
[1717218957278,5.64008,3787.8,3787.7,0.638]
[1717218957479,2.64008,3787.8,3787.7,0.638]
[1717218960327,2.64008,3787.8,3787.1,2.4418]
[1717218960526,2.64008,3787.8,3787.7,0.638]
[1717218962826,2.64008,3787.8,3787.0,7.43]
[1717218963144,2.64008,3787.8,3787.7,0.638]
[1717218968817,2.64038,3787.4,3787.0,7.43]
[1717218969116,2.64038,3787.4,3787.3,0.638]
[1717218972596,2.64038,3787.4,3786.6,7.43]
[1717218972798,2.64038,3787.4,3787.3,0.638]
[1717218975318,4.91238,3787.4,3787.3,0.638]
[1717218981250,4.91238,3787.4,3786.6,7.43]
[1717218981454,4.91238,3787.4,3787.3,0.638]
[1717218989060,4.96228,3787.4,3786.7,1.02067526]
[1717218989591,4.96228,3787.4,3787.3,0.638]
[1717218989728,2.64038,3787.4,3787.3,0.638]
[1717218996532,2.64004,3787.9,3787.3,0.638]
[1717218996816,3.0,3787.8,3787.0,2.4248]
[1717218996951,2.64004,3787.9,3787.7,0.638]
[1717218999195,2.64004,3787.9,3787.1,0.24248]
[1717218999457,2.64004,3787.9,3787.8,0.638]
[1717218999775,5.64004,3787.9,3787.8,0.638]
[1717219006512,5.64004,3787.9,3787.1,2.3085]
[1717219006681,5.64004,3787.9,3787.8,0.638]
[1717219008825,7.95114,3787.9,3787.8,0.638]
[1717219014837,2.64054,3787.2,3787.0,7.43]
[1717219014990,2.64054,3787.2,3787.1,0.638]
[1717219023645,2.64054,3787.2,3786.2,2.82327007]
[1717219023805,2.64054,3787.2,3787.1,0.638]
[1717219025324,2.3814,3787.8,3787.1,0.638]
[1717219025325,2.64017,3787.7,3787.1,0.638]
[1717219025521,2.64017,3787.7,3786.9,2.2715]
[1717219025522,3.0,3787.6,3786.9,2.2715]
[1717219025840,3.0,3787.6,3787.5,0.638]
[1717219027132,2.64027,3787.5,3786.9,2.2715]
[1717219027296,2.64027,3787.5,3787.4,0.638]
[1717219028748,2.63993,3788.0,3787.4,0.638]
[1717219028914,2.63993,3788.0,3787.9,0.638]
[1717219029993,2.63993,3788.0,3787.9,2.9095]
[1717219030221,2.63993,3788.0,3787.9,3.20045]
[1717219031017,2.6396,3788.5,3787.9,3.20045]
[1717219031191,3.0,3788.4,3787.9,2.2715]
[1717219031391,3.0,3788.4,3788.3,0.638]
[1717219034966,3.0,3788.4,3787.6,2.2715]
[1717219035337,3.0,3788.4,3788.3,0.638]
[1717219053581,2.63979,3788.2,3787.6,2.2715]
[1717219053806,2.63979,3788.2,3788.1,0.638]
[1717219057095,2.63979,3788.2,3788.1,3.0133]
[1717219057724,2.63979,3788.2,3788.1,0.638]
[1717219059670,2.63979,3788.2,3787.9,2.3753]
[1717219060008,2.63979,3788.2,3788.1,0.638]
[1717219064675,2.64008,3787.8,3787.5,7.43]
[1717219064881,2.64008,3787.8,3787.7,0.638]
[1717219079473,2.64008,3787.8,3787.7,0.63648877]
[1717219083469,2.64008,3787.8,3786.9,7.43]
[1717219083646,2.64035,3787.4,3787.0,0.97537]
[1717219083891,2.64035,3787.4,3787.3,0.638]
[1717219084517,2.64035,3787.4,3786.9,7.43]
[1717219084770,2.64035,3787.4,3787.3,0.638]
[1717219093917,2.64035,3787.4,3786.5,0.41326043]
[1717219094108,2.64035,3787.4,3787.3,0.638]
[1717219095660,2.64035,3787.4,3787.3,2.9617]
[1717219102553,2.64035,3787.4,3786.9,2.3344]
[1717219102703,2.64035,3787.4,3787.3,0.638]
[1717219105561,2.64035,3787.4,3787.3,2.9292]
[1717219105709,2.64035,3787.4,3787.3,3.22212]
[1717219111368,2.64035,3787.4,3787.3,0.638]
[1717219113337,2.64035,3787.4,3786.8,2.70450662]
[1717219113539,2.64035,3787.4,3787.3,0.638]
[1717219122203,5.01785,3787.4,3787.3,0.638]
[1717219122684,2.64035,3787.4,3787.3,0.638]
[1717219123377,4.97475,3787.4,3787.3,0.638]
[1717219134736,5.472225,3787.4,3787.3,0.638]
[1717219135295,4.97475,3787.4,3787.3,0.638]
[1717219135944,4.97475,3787.4,3786.8,0.41330662]
[1717219136152,4.97475,3787.4,3787.3,0.638]
[1717219140590,2.64035,3787.4,3787.3,0.638]
[1717219141102,2.64035,3787.4,3786.8,0.41330662]
[1717219141781,2.64035,3787.4,3787.3,0.638]
[1717219143592,2.64068,3787.0,3786.8,0.41330662]
[1717219143779,2.64068,3787.0,3786.9,0.638]
[1717219144658,2.64068,3787.0,3786.8,0.41330662]
[1717219144659,5.64068,3787.0,3786.8,0.41330662]
[1717219144871,5.64068,3787.0,3786.9,0.638]
[1717219146383,8.01998,3787.0,3786.8,0.41330662]
[1717219146559,5.3793,3786.9,3786.8,0.41330662]
[1717219146865,5.3793,3786.9,3786.8,1.05130662]
[1717219148655,5.3793,3786.9,3786.8,0.638]
[1717219148854,5.3793,3786.9,3785.7,7.43]
[1717219148855,2.64093,3786.6,3785.7,7.43]
[1717219149182,2.64093,3786.6,3786.5,0.638]
[1717219151205,2.64093,3786.6,3785.6,7.43]
[1717219151371,2.64093,3786.6,3786.5,0.638]
[1717219151988,2.64093,3786.6,3785.6,7.43]
[1717219152203,2.64093,3786.6,3786.5,0.638]
[1717219154512,2.64131,3786.0,3785.5,7.43]
[1717219154717,2.64131,3786.0,3785.3,2.323]
[1717219154854,2.64131,3786.0,3785.9,0.638]
[1717219163288,2.64131,3786.0,3785.3,2.323]
[1717219163498,2.64131,3786.0,3785.9,0.638]
[1717219163702,2.64173,3785.4,3784.6,9.8899]
[1717219163887,2.64173,3785.4,3785.3,0.638]
[1717219165491,2.64173,3785.4,3785.3,3.0979]
[1717219165706,2.64173,3785.4,3785.3,3.40769]
[1717219167158,2.64173,3785.4,3785.3,0.638]
[1717219175844,2.6414,3785.9,3785.3,0.638]
[1717219176110,2.6414,3785.9,3785.2,2.4599]
[1717219176314,2.6414,3785.9,3785.8,0.638]
[1717219176607,5.6414,3785.9,3785.8,0.638]
[1717219181148,2.6414,3785.9,3785.8,0.638]
[1717219181343,2.6414,3785.9,3785.8,3.0365]
[1717219181558,2.6414,3785.9,3785.8,3.34015]
[1717219181978,2.6414,3785.9,3785.8,0.94165]
[1717219182798,2.6414,3785.9,3785.8,0.638]
[1717219200862,2.3001,3785.8,3785.2,1.37721065]
[1717219201074,2.3001,3785.8,3785.1,7.98045972]
[1717219201075,2.64156,3785.7,3785.1,7.43]
[1717219201741,2.64156,3785.7,3785.6,0.638]
[1717219203078,3.135726,3785.7,3785.6,0.638]
[1717219203266,3.135726,3785.7,3785.1,7.43]
[1717219203467,2.64156,3785.7,3785.6,0.638]
[1717219214142,2.64156,3785.7,3784.8,2.3262]
[1717219214344,2.64156,3785.7,3785.6,0.638]
[1717219214528,2.64156,3785.7,3784.6,2.3262]
[1717219214733,2.64156,3785.7,3785.6,0.638]
[1717219215042,2.905716,3785.7,3785.6,0.638]
[1717219215340,5.323816,3785.7,3785.6,0.638]
[1717219215538,2.64185,3785.3,3784.6,2.3262]
[1717219215848,2.64185,3785.3,3785.2,0.638]
[1717219218555,5.06925,3785.3,3785.2,0.638]
[1717219218757,5.576175,3785.3,3785.2,0.638]
[1717219218908,5.576175,3785.3,3784.3,2.2633]
[1717219218909,2.64209,3784.9,3784.3,2.2633]
[1717219219106,2.64209,3784.9,3784.8,0.638]
[1717219219708,5.06949,3784.9,3784.8,0.638]
[1717219222337,5.06949,3784.9,3784.2,7.43]
[1717219222573,5.06949,3784.9,3784.8,0.638]
[1717219223832,5.06949,3784.9,3784.2,7.43]
[1717219224032,5.06949,3784.9,3784.8,0.638]
[1717219234814,2.64239,3784.5,3783.9,7.43]
[1717219235009,2.64239,3784.5,3783.4,12.24]
[1717219235010,2.64239,3784.5,3784.4,0.638]
[1717219236712,2.64239,3784.5,3784.0,2.2504]
[1717219236894,2.64239,3784.5,3784.4,0.638]
[1717219237866,2.64239,3784.5,3783.8,2.2504]
[1717219238061,2.64239,3784.5,3784.4,0.638]
[1717219241280,2.64239,3784.5,3783.8,2.2504]
[1717219241485,2.64239,3784.5,3784.4,0.638]
[1717219242327,4.95229,3784.5,3784.4,0.638]
[1717219245115,4.95229,3784.5,3783.3,2.4881]
[1717219245116,2.64276,3784.0,3783.3,2.4881]
[1717219245325,2.64276,3784.0,3783.9,0.638]
[1717219249316,5.64238,3784.5,3783.9,3.1261]
[1717219249523,5.64238,3784.5,3784.4,0.638]
[1717219249972,2.64238,3784.5,3784.4,0.638]
[1717219252219,3.0,3784.9,3784.4,0.638]
[1717219252378,3.0,3784.9,3784.7,0.638]
[1717219258294,2.64214,3784.8,3784.7,0.638]
[1717219266990,2.64248,3784.4,3783.9,2.4947]
[1717219267139,2.64248,3784.4,3784.3,0.638]
[1717219272650,2.64248,3784.4,3783.3,1.92832553]
[1717219272852,2.64248,3784.4,3784.3,0.638]
[1717219290591,2.64248,3784.4,3783.5,2.2604]
[1717219290794,2.64248,3784.4,3784.3,0.638]
[1717219294723,2.64248,3784.4,3784.0,2.2604]
[1717219294876,2.64248,3784.4,3784.3,0.638]
[1717219298807,2.64248,3784.4,3783.9,2.2604]
[1717219299009,2.64248,3784.4,3784.3,0.638]
[1717219303841,2.64248,3784.4,3783.5,2.3704]
[1717219304039,2.64248,3784.4,3784.3,0.638]
[1717219311171,5.14088,3784.4,3784.3,0.638]
[1717219312333,2.64248,3784.4,3784.3,0.638]
[1717219313577,2.64212,3784.9,3784.3,0.638]
[1717219313746,2.64212,3784.9,3784.8,0.638]
[1717219315782,5.64176,3785.4,3784.8,0.638]
[1717219315932,5.64176,3785.4,3785.3,0.638]
[1717219320285,8.12926,3785.4,3785.3,0.638]
[1717219320579,8.942186,3785.4,3785.3,0.638]
[1717219322786,6.454686,3785.4,3785.3,0.638]
[1717219322954,5.64176,3785.4,3785.3,0.638]
[1717219326818,5.64176,3785.4,3784.7,2.3461]
[1717219327021,5.64176,3785.4,3785.3,0.638]
[1717219328768,2.64176,3785.4,3784.8,2.42414014]
[1717219329085,2.64176,3785.4,3785.3,0.638]
[1717219339396,4.93586,3785.4,3785.3,0.638]
[1717219339597,7.93586,3785.4,3785.3,0.638]
[1717219343141,2.64207,3785.0,3784.5,7.43]
[1717219343324,2.64207,3785.0,3784.9,0.638]
[1717219347892,3.0,3785.4,3784.9,0.638]
[1717219348109,3.0,3785.3,3784.9,2.2973]
[1717219348373,3.0,3785.4,3785.3,0.638]
[1717219350305,3.0,3785.4,3783.9,2.64272]
[1717219350306,2.64193,3785.1,3784.4,2.2973]
[1717219350540,2.64193,3785.1,3785.0,0.638]
[1717219351762,5.64193,3785.1,3785.0,0.638]
[1717219352958,2.64232,3784.6,3783.8,7.43]
[1717219353163,2.64232,3784.6,3784.5,0.638]
[1717219353381,5.64232,3784.6,3784.5,0.638]
[1717219354415,2.64262,3784.2,3783.3,2.2973]
[1717219354609,2.64262,3784.2,3784.1,0.638]
[1717219355131,0.55,3785.1,3784.1,0.638]
[1717219355132,2.64225,3784.7,3784.1,0.638]
[1717219355336,2.64225,3784.7,3784.6,0.638]
[1717219359063,2.64225,3784.7,3784.2,2.59083]
[1717219359379,2.64225,3784.7,3784.6,0.638]
[1717219362068,2.64225,3784.7,3783.8,2.3568]
[1717219362278,2.64225,3784.7,3784.6,0.638]
[1717219389719,2.64225,3784.7,3784.5,2.3153]
[1717219389929,2.64225,3784.7,3784.6,0.638]
[1717219398187,5.02955,3784.7,3784.6,0.638]
[1717219405035,2.6425,3784.3,3783.8,2.3153]
[1717219405248,2.6425,3784.3,3784.2,0.638]
[1717219405389,5.0304,3784.3,3784.2,0.638]
[1717219406991,5.0304,3784.3,3783.6,2.411]
[1717219407192,5.0304,3784.3,3784.2,0.638]
[1717219420215,2.6425,3784.3,3784.2,0.638]
[1717219425478,3.0,3784.7,3784.2,0.638]
[1717219425678,3.0,3784.6,3784.1,2.486]
[1717219425884,3.0,3784.7,3784.6,0.638]
[1717219430796,2.64229,3784.6,3784.1,2.486]
[1717219430996,2.64229,3784.6,3784.5,0.638]
[1717219431227,5.64229,3784.6,3784.5,0.638]
[1717219433718,8.11349,3784.6,3783.8,2.4808]
[1717219433910,8.11349,3784.6,3784.5,0.638]
[1717219436406,5.64229,3784.6,3784.5,0.638]
[1717219448403,2.64229,3784.6,3784.5,0.638]
[1717219450752,3.0,3785.0,3784.5,0.638]
[1717219450753,3.0,3785.0,3784.5,2.9706]
[1717219450959,2.64199,3785.1,3784.9,0.638]
[1717219451102,3.0,3785.0,3784.9,0.638]
[1717219452961,2.64199,3785.1,3785.0,2.3326]
[1717219453251,2.64199,3785.1,3785.0,2.62966]
[1717219454054,2.64163,3785.6,3785.0,2.62966]
[1717219454371,2.64163,3785.6,3785.5,0.638]
[1717219461738,2.64163,3785.6,3785.0,2.62966]
[1717219461739,4.95083,3785.6,3785.0,0.29706]
[1717219461926,4.95083,3785.6,3785.5,0.638]
[1717219462831,4.95083,3785.6,3784.8,2.3326]
[1717219463036,4.95083,3785.6,3785.5,0.638]
[1717219465449,2.64163,3785.6,3785.5,0.638]
[1717219504273,4.96753,3785.6,3785.5,0.638]
[1717219506966,2.64163,3785.6,3784.8,2.3556]
[1717219507262,2.64163,3785.6,3785.5,0.638]
[1717219507475,3.138383,3785.6,3785.5,0.638]
[1717219512371,3.138383,3785.6,3784.6,1.37743459]
[1717219512372,2.64184,3785.3,3784.6,1.37743459]
[1717219512571,2.64184,3785.3,3785.2,0.638]
[1717219520579,5.02284,3785.3,3784.6,1.37749871]
[1717219520747,5.02284,3785.3,3785.2,0.638]
[1717219521474,5.525124,3785.3,3785.2,0.638]
[1717219526360,5.02284,3785.3,3785.2,0.638]
[1717219535294,2.64184,3785.3,3785.2,0.638]
[1717219538274,2.59184,3785.3,3785.2,0.638]
[1717219544310,2.54184,3785.3,3785.2,0.638]
[1717219548329,2.54184,3785.3,3784.6,2.2738]
[1717219548528,2.54184,3785.3,3785.2,0.638]
[1717219571231,2.54184,3785.3,3785.2,0.93083]
[1717219583911,2.6415,3785.8,3785.3,2.4225]
[1717219584145,2.6415,3785.8,3785.7,0.638]
[1717219601175,2.6415,3785.8,3784.7,1.37739669]
[1717219601532,0.1583406,3786.1,3784.8,1.16600145]
[1717219601533,2.64165,3785.6,3784.8,1.16600145]
[1717219601729,2.64165,3785.6,3785.5,0.638]
[1717219629566,5.10925,3785.6,3785.5,0.638]
[1717219631201,2.64197,3785.1,3784.7,2.4426]
[1717219631407,2.64197,3785.1,3785.0,0.638]
[1717219642000,2.64222,3784.7,3784.1,2.2621]
[1717219642197,2.64222,3784.7,3784.6,0.638]
[1717219646520,2.64252,3784.3,3783.7,2.2621]
[1717219646701,2.64252,3784.3,3784.2,0.638]
[1717219671981,2.64278,3783.9,3783.5,2.4604]
[1717219672130,2.64278,3783.9,3783.8,0.638]
[1717219681910,2.64278,3783.9,3783.5,2.4604]
[1717219682205,2.64278,3783.9,3783.8,0.638]
[1717219694084,2.64305,3783.5,3783.0,2.2796]
[1717219694340,2.64305,3783.5,3783.4,0.638]
[1717219695931,2.64305,3783.5,3783.0,2.2796]
[1717219696228,2.64305,3783.5,3783.4,0.638]
[1717219710268,2.64334,3783.1,3782.6,2.2902]
[1717219710471,2.64334,3783.1,3783.0,0.638]
[1717219719700,2.64334,3783.1,3782.4,2.2902]